bitfinex-derivatives/quotes_SOLF0:USTF0_20250623
["timestamp","ask_amount","ask_price","bid_price","bid_amount"]
[1750707278234,8.47097221,138.65,138.59,8.47097221]
[1750707278550,7.209,138.63,138.6,7.2102]
[1750707280448,7.2096,138.62,138.6,7.2102]
[1750707281531,7.2092,138.63,138.6,7.2102]
[1750707282442,7.2092,138.63,138.61,7.2099]
[1750707284245,37.6,138.64,138.6,7.2103]
[1750707284446,5.80745217,138.63,138.6,7.2103]
[1750707284746,7.2093,138.63,138.6,7.2103]
[1750707285146,37.6,138.64,138.59,15.68167221]
[1750707285341,5.80709234,138.63,138.59,8.47097221]
[1750707285545,37.6,138.64,138.59,8.47097221]
[1750707285745,13.01651979,138.63,138.6,7.21]
[1750707286044,7.2094,138.63,138.6,7.21]
[1750707286847,7.2094,138.63,138.61,7.2099]
[1750707287537,6.70472495,138.66,138.61,8.45967101]
[1750707287734,5.23910445,138.68,138.63,8.45743723]
[1750707287939,8.63854199,138.67,138.63,8.45743723]
[1750707288146,5.81478625,138.66,138.63,8.45743723]
[1750707288449,2.82194337,138.68,138.63,8.45743723]
[1750707288643,37.58,138.69,138.65,8.45743723]
[1750707289542,37.58,138.69,138.68,7.2063]
[1750707289740,2.82086857,138.7,138.68,7.2063]
[1750707289945,7.2051,138.71,138.68,7.2063]
[1750707290142,8.62803384,138.7,138.68,7.2063]
[1750707290342,7.2054,138.7,138.67,7.2066]
[1750707291547,7.2054,138.7,138.68,7.2063]
[1750707292547,7.2054,138.7,138.67,8.45743723]
[1750707293251,286.33443723,138.72,138.67,8.45743723]
[1750707293440,8.62061234,138.71,138.65,8.45743723]
[1750707293644,7.2071,138.67,138.65,8.45743723]
[1750707293844,8.45743723,138.7,138.61,42.0906]
[1750707294046,5.79649318,138.69,138.63,8.45743723]
[1750707294352,292.65635081,138.68,138.61,8.45743723]
[1750707294553,280.3213,138.68,138.61,8.45743723]
[1750707294753,7.2087,138.64,138.61,15.66713723]
[1750707295250,7.209,138.63,138.61,15.66713723]
[1750707295658,8.45743723,138.67,138.61,15.66713723]
[1750707296657,7.2087,138.64,138.61,15.66713723]
[1750707296854,7.2087,138.64,138.62,7.2094]
[1750707297457,7.2082,138.65,138.62,7.2094]
[1750707298154,7.2085,138.64,138.62,7.2094]
[1750707299557,7.2082,138.65,138.62,7.2094]
[1750707300061,7.2082,138.65,138.62,7.2093]
[1750707300253,275.58,138.68,138.63,8.45743723]
[1750707300452,253.39703723,138.72,138.65,8.45743723]
[1750707300655,253.39703723,138.72,138.65,15.66503723]
[1750707300656,43.38301027,138.71,138.65,15.66503723]
[1750707300863,7.2061,138.69,138.65,8.45743723]
[1750707301361,37.58,138.71,138.67,8.45743723]
[1750707301564,37.58,138.74,138.69,8.45743723]
[1750707301866,37.58,138.74,138.72,7.2042]
[1750707302048,37.58,138.77,138.71,8.45743723]
[1750707302254,37.58,138.77,138.74,7.203]
[1750707303260,44.7819,138.77,138.74,7.203]
[1750707303456,37.58,138.77,138.73,8.45743723]
[1750707304053,37.58,138.77,138.75,7.2024]
[1750707304257,37.54,138.79,138.71,37.54]
[1750707304554,7.2017,138.77,138.73,7.2037]
[1750707305060,8.45743723,138.78,138.73,7.2037]
[1750707305263,7.2023,138.76,138.73,7.2037]
[1750707305767,37.54,138.79,138.72,8.45743723]
[1750707306356,7.2013,138.78,138.72,8.45743723]
[1750707306862,7.2017,138.77,138.74,7.2028]
[1750707307054,37.54,138.79,138.74,7.2028]
[1750707307460,7.2014,138.78,138.74,7.2028]
[1750707308061,37.54,138.79,138.76,8.45743723]
[1750707308564,44.7409,138.79,138.76,15.65933723]
[1750707310269,37.54,138.79,138.76,8.45743723]
[1750707310457,37.54,138.79,138.7,37.52]
[1750707310659,37.54,138.79,138.72,8.45743723]
[1750707310870,37.54,138.79,138.74,8.45743723]
[1750707311364,7.2014,138.78,138.75,7.2024]
[1750707311866,44.7408,138.79,138.76,7.2021]
[1750707312055,37.54,138.79,138.76,7.2021]
[1750707312358,7.2012,138.78,138.76,7.2021]
[1750707312668,37.54,138.79,138.76,7.2021]
[1750707313068,37.54,138.79,138.77,7.2016]
[1750707313465,44.7407,138.79,138.76,7.2018]
[1750707313861,44.7407,138.79,138.74,8.45743723]
[1750707314263,44.7407,138.79,138.76,7.2018]
[1750707314770,37.54,138.79,138.76,8.45743723]
[1750707315266,37.54,138.79,138.78,7.2011]
[1750707317569,625.2124,138.81,138.79,7.2003]
[1750707318775,622.82,138.81,138.79,7.2003]
[1750707318973,622.82,138.81,138.8,7.2001]
[1750707319280,44.7194,138.82,138.78,8.45743723]
[1750707319575,44.7194,138.82,138.79,7.2003]
[1750707319769,44.7194,138.82,138.78,8.45743723]
[1750707319972,37.52,138.82,138.78,8.45743723]
[1750707320189,37.52,138.82,138.8,8.45743723]
[1750707320376,238.0,138.84,138.82,7.1987]
[1750707320677,39.8467,138.86,138.8,8.45743723]
[1750707320876,39.8467,138.86,138.82,7.1988]
[1750707321467,39.8467,138.86,138.81,7.1993]
[1750707322386,7.1981,138.84,138.81,7.1993]
[1750707322583,39.8467,138.86,138.8,8.45743723]
[1750707323488,7.1977,138.85,138.82,7.1987]
[1750707323784,7.1977,138.85,138.8,8.45743723]
[1750707323976,7.1977,138.85,138.82,15.65623723]
[1750707324485,8.45743723,138.84,138.78,7.2011]
[1750707324688,16.69355202,138.84,138.77,8.45743723]
[1750707324984,10.84613723,138.84,138.77,8.45743723]
[1750707325182,10.84613723,138.84,138.79,15.65763723]
[1750707325384,9.587,138.84,138.79,8.45743723]
[1750707325591,286.30413723,138.86,138.81,8.45743723]
[1750707325788,39.8467,138.86,138.81,8.45743723]
[1750707326095,7.1975,138.85,138.81,8.45743723]
[1750707326394,39.8467,138.86,138.81,8.45743723]
[1750707327195,37.52,138.86,138.83,8.45743723]
[1750707327692,37.52,138.86,138.85,15.65493723]
[1750707327897,39.7722,138.89,138.85,8.45743723]
[1750707328394,7.1967,138.87,138.85,8.45743723]
[1750707329785,7.1962,138.88,138.85,15.65483723]
[1750707329997,7.1962,138.88,138.85,7.1974]
[1750707331691,39.7722,138.89,138.84,8.45743723]
[1750707331891,42.0882,138.89,138.84,8.45743723]
[1750707332097,42.0882,138.89,138.83,15.65543723]
[1750707332388,42.0882,138.89,138.83,8.45743723]
[1750707332695,37.5,138.89,138.85,8.45743723]
[1750707333090,7.196,138.88,138.85,15.65453723]
[1750707333290,37.5,138.89,138.85,8.45743723]
[1750707333788,44.6957,138.89,138.86,7.1965]
[1750707334795,37.5,138.89,138.85,8.45743723]
[1750707335001,37.5,138.89,138.87,8.45743723]
[1750707335301,37.5,138.89,138.88,7.1959]
[1750707335600,37.5,138.89,138.87,8.45743723]
[1750707336001,44.6957,138.89,138.87,8.45743723]
[1750707336895,37.5,138.89,138.87,8.45743723]
[1750707337298,37.5,138.89,138.88,7.1959]
[1750707339296,37.5,138.89,138.87,8.45743723]
[1750707339702,44.6957,138.89,138.82,99.5]
[1750707339901,44.6957,138.89,138.86,15.65413723]
[1750707340103,37.5,138.89,138.86,8.45743723]
[1750707340305,44.6957,138.89,138.86,8.45743723]
[1750707340799,44.6957,138.89,138.87,7.1962]
[1750707342394,7.196,138.88,138.86,15.65423723]
[1750707343301,37.5,138.89,138.85,8.45743723]
[1750707343503,37.5,138.89,138.74,630.59743723]
[1750707343711,8.45743723,138.86,138.79,8.45743723]
[1750707344007,8.45743723,138.84,138.77,8.45743723]
[1750707344394,5.89083243,138.83,138.77,8.45743723]
[1750707344597,11.28046856,138.84,138.77,8.45743723]
[1750707344796,11.30709144,138.83,138.77,8.45743723]
[1750707345008,11.28046856,138.84,138.77,8.45743723]
[1750707345194,226.7847,138.85,138.83,8.45743723]
[1750707345395,44.10817488,138.92,138.83,8.45743723]
[1750707345596,40.28140905,138.92,138.88,8.45743723]
[1750707345900,37.46,138.92,138.88,8.45743723]
[1750707346298,5.40361269,138.91,138.87,7.196]
[1750707346496,40.28037458,138.92,138.87,8.45743723]
[1750707346704,5.40363859,138.91,138.87,8.45743723]
[1750707346901,39.801,138.95,138.89,8.45743723]
[1750707347207,39.801,138.95,138.92,8.45743723]
[1750707347507,46.9937,138.95,138.92,8.45743723]
[1750707347708,39.801,138.95,138.92,8.45743723]
[1750707347904,46.9933,138.95,138.92,8.45743723]
[1750707348298,626.644,138.97,138.92,8.45743723]
[1750707348499,37.46,138.96,138.92,8.45743723]
[1750707349404,37.46,138.96,138.94,7.1926]
[1750707349608,37.46,138.96,138.94,8.45743723]
[1750707349808,39.7358,138.99,138.94,8.45743723]
[1750707350108,6.64817488,139.04,138.98,8.45743723]
[1750707350313,8.10272016,139.05,138.97,37.46]
[1750707350512,13.74578963,139.04,138.98,8.45743723]
[1750707350805,8.45743723,139.04,139.0,7.1896]
[1750707351003,8.45743723,139.04,138.98,8.45743723]
[1750707351397,8.45743723,139.04,138.98,15.64783723]
[1750707352094,7.1885,139.03,138.98,15.64783723]
[1750707352297,50.28318818,139.06,138.95,2.2512]
[1750707352498,7.1898,139.0,138.96,12.82318818]
[1750707352698,37.46,139.01,138.95,12.82318818]
[1750707352905,37.46,139.01,138.94,12.82318818]
[1750707353104,7.1905,138.99,138.94,74.82318818]
[1750707353502,7.1905,138.99,138.95,7.192]
[1750707353702,7.1909,138.98,138.95,7.192]
[1750707355309,7.1915,138.97,138.92,50.28318818]
[1750707355511,12.82318818,139.0,138.91,39.6982]
[1750707355809,7.1906,138.99,138.95,7.1918]
[1750707356005,57.36498818,139.01,138.95,7.1918]
[1750707356611,7.1911,138.98,138.94,7.1927]
[1750707356912,7.1911,138.98,138.92,12.82318818]
[1750707357709,7.1911,138.98,138.95,7.1921]
[1750707357911,7.1905,138.99,138.95,7.1921]
[1750707358111,7.1905,138.99,138.92,12.82318818]
[1750707358301,57.36498818,139.01,138.96,7.1914]
[1750707358498,39.8225,139.01,138.94,12.82318818]
[1750707358711,39.8225,139.01,138.96,12.82318818]
[1750707358911,37.46,139.01,138.96,12.82318818]
[1750707359909,37.46,139.01,138.99,7.1899]
[1750707360297,37.46,139.01,138.96,12.82318818]
[1750707361211,37.46,139.01,138.98,12.82318818]
[1750707361613,37.46,139.01,138.96,12.82318818]
[1750707361803,44.6495,139.01,138.98,7.1905]
[1750707363612,37.46,139.01,138.95,37.44]
[1750707363806,50.28318818,139.01,138.92,12.82318818]
[1750707364003,12.82318818,138.97,138.9,143.41041522]
[1750707364213,41.9817,138.96,138.88,12.82318818]
[1750707364709,41.9817,138.96,138.87,15.20098818]
[1750707364710,12.82318818,138.95,138.87,15.20098818]
[1750707364912,12.82318818,138.95,138.85,37.44]
[1750707365110,12.82318818,138.91,138.82,12.82318818]
[1750707365304,38.98,138.9,138.82,12.82318818]
[1750707365706,12.82318818,138.89,138.82,12.82318818]
[1750707366103,7.1968,138.87,138.83,7.1982]
[1750707366807,38.98,138.86,138.81,7.1992]
[1750707367004,38.98,138.86,138.77,41.2409]
[1750707367305,7.1989,138.83,138.79,7.2002]
[1750707367907,7.1989,138.83,138.79,7.2003]
[1750707368109,7.1989,138.83,138.77,51.80318818]
[1750707368408,46.1793,138.82,138.77,12.82318818]
[1750707369115,7.1997,138.81,138.74,38.98]
[1750707369304,38.98,138.82,138.74,51.80318818]
[1750707369512,38.98,138.82,138.76,12.82318818]
[1750707370912,38.98,138.85,138.78,12.82318818]
[1750707371109,38.98,138.85,138.8,12.82318818]
[1750707371616,38.98,138.85,138.84,7.198]
[1750707372611,38.98,138.85,138.83,7.1984]
[1750707373216,38.98,138.85,138.84,7.198]
[1750707375207,38.98,138.85,138.82,12.82318818]
[1750707375521,38.98,138.85,138.8,12.82318818]
[1750707376719,38.98,138.85,138.82,7.199]
[1750707377022,38.98,138.85,138.82,12.82318818]
[1750707377515,38.98,138.85,138.83,7.1982]
[1750707378216,38.98,138.85,138.82,12.82318818]
[1750707378418,50.8734,138.88,138.82,12.82318818]
[1750707379015,7.1968,138.87,138.82,12.82318818]
[1750707379420,7.1968,138.87,138.8,2.3586]
[1750707379421,2.3288,138.91,138.84,12.82318818]
[1750707379737,41.02,138.97,138.9,12.82318818]
[1750707380021,41.02,139.0,138.89,41.02]
[1750707380226,41.02,139.0,138.95,12.82318818]
[1750707380412,41.02,139.0,138.97,7.191]
[1750707380609,41.02,139.0,138.89,48.0161]
[1750707380809,53.84318818,139.0,138.89,48.0161]
[1750707381016,2.3288,139.03,138.94,12.82318818]
[1750707381218,41.0,139.02,138.96,12.82318818]
[1750707381421,41.0,139.02,138.98,7.1903]
[1750707381823,41.0,139.02,138.96,12.82318818]
[1750707382425,41.0,139.05,139.0,12.82318818]
[1750707382625,41.0,139.05,139.01,7.1888]
[1750707382924,41.0,139.05,138.99,12.82318818]
[1750707383230,6.65090128,139.12,138.97,62.0]
[1750707383418,43.2587,139.12,139.06,12.82318818]
[1750707384123,43.2587,139.12,139.0,41.0]
[1750707384333,43.2587,139.12,139.07,7.1858]
[1750707384622,43.2587,139.12,139.05,12.82318818]
[1750707384930,7.1842,139.11,139.06,7.1862]
[1750707385224,43.2587,139.12,139.07,12.82318818]
[1750707385418,43.2587,139.12,139.09,7.1849]
[1750707385818,43.2587,139.12,139.07,12.82318818]
[1750707386625,43.2587,139.12,139.09,7.1847]
[1750707387521,43.2587,139.12,139.08,7.1855]
[1750707388228,43.2587,139.12,139.07,20.00908818]
[1750707388426,43.2587,139.12,139.0,41.0]
[1750707388627,43.2587,139.12,139.05,12.82318818]
[1750707389526,41.0,139.12,139.09,12.82318818]
[1750707389922,42.62,139.2,139.11,12.82318818]
[1750707390126,42.62,139.2,139.16,12.82318818]
[1750707390322,42.62,139.2,139.17,7.1806]
[1750707390716,4.742,139.23,139.13,42.62]
[1750707390930,47.362,139.23,139.18,12.82318818]
[1750707391128,47.362,139.23,139.13,42.62]
[1750707391321,47.362,139.23,139.12,2.3921]
[1750707391522,47.362,139.23,139.12,12.82318818]
[1750707391723,60.18518818,139.23,139.14,12.82318818]
[1750707392026,60.18518818,139.23,139.11,62.0]
[1750707392027,12.82318818,139.22,139.13,12.82318818]
[1750707392232,69.63407549,139.23,139.13,22.27207549]
[1750707392622,47.362,139.23,139.13,22.27207549]
[1750707393431,47.362,139.23,139.16,7.1811]
[1750707393736,47.362,139.23,139.13,22.27207549]
[1750707393925,7.1792,139.21,139.17,7.1807]
[1750707394426,42.62,139.23,139.19,22.27207549]
[1750707395131,42.62,139.23,139.17,22.27207549]
[1750707395532,42.62,139.23,139.15,44.9707]
[1750707395533,42.62,139.23,139.2,7.1791]
[1750707396121,42.62,139.23,139.21,7.1786]
[1750707396328,42.6,139.32,139.21,22.27207549]
[1750707396537,42.6,139.32,139.22,2.4095]
[1750707396745,6.858,139.34,139.29,22.27207549]
[1750707396746,4.5251,139.34,139.29,22.27207549]
[1750707397042,2.2405,139.34,139.29,22.27207549]
[1750707397336,42.6,139.32,139.25,22.27207549]
[1750707397537,22.27207549,139.29,139.18,42.6]
[1750707397829,42.6,139.28,139.2,7.179]
[1750707398036,42.6,139.28,139.18,64.87207549]
[1750707398628,42.6,139.28,139.2,22.27207549]
[1750707398834,2.2846,139.29,139.22,22.27207549]
[1750707399135,7.1756,139.28,139.23,7.1774]
[1750707399336,7.1756,139.28,139.22,22.27207549]
[1750707399528,2.2846,139.29,139.22,22.27207549]
[1750707399729,2.2846,139.29,139.23,22.27207549]
[1750707400133,7.1754,139.28,139.24,7.177]
[1750707400435,42.6,139.27,139.18,64.87207549]
[1750707401036,2.4181,139.26,139.18,64.87207549]
[1750707401930,7.177,139.25,139.18,64.87207549]
[1750707402328,2.4181,139.26,139.18,42.6]
[1750707402641,7.1772,139.25,139.21,7.1788]
[1750707403640,7.1772,139.25,139.22,7.1783]
[1750707403846,7.1774,139.24,139.18,64.87207549]
[1750707404039,2.4181,139.26,139.21,7.1784]
[1750707404254,2.4181,139.26,139.18,64.87207549]
[1750707404433,9.5949,139.26,139.18,64.87207549]
[1750707404834,2.4181,139.26,139.2,22.27207549]
[1750707405541,2.4181,139.26,139.18,42.6]
[1750707405741,2.4181,139.26,139.18,64.87207549]
[1750707405942,2.4181,139.26,139.21,7.1785]
[1750707406144,7.1772,139.25,139.18,64.87207549]
[1750707406643,42.6,139.27,139.18,64.87207549]
[1750707406848,42.6,139.27,139.2,22.27207549]
[1750707407443,49.7762,139.27,139.24,7.1773]
[1750707407846,49.7762,139.27,139.2,22.27207549]
[1750707408443,42.6,139.27,139.22,7.1783]
[1750707408751,42.6,139.27,139.18,64.87207549]
[1750707408952,7.177,139.25,139.18,64.87207549]
[1750707409848,7.1766,139.26,139.22,7.1781]
[1750707410153,7.1766,139.26,139.18,64.87207549]
[1750707410652,7.1769,139.25,139.18,64.87207549]
[1750707411253,64.87207549,139.27,139.18,42.6]
[1750707411556,7.1766,139.26,139.23,7.1777]
[1750707411757,42.6,139.27,139.18,64.85486285]
[1750707412148,49.7762,139.27,139.24,7.1773]
[1750707412457,42.6,139.27,139.2,22.25486285]
[1750707412657,2.2846,139.29,139.2,22.25486285]
[1750707412955,9.4599,139.29,139.25,7.1765]
[1750707413349,9.4599,139.29,139.26,7.176]
[1750707413554,4.24249232,139.3,139.23,22.24645686]
[1750707413955,11.41719232,139.3,139.27,7.1757]
[1750707414262,4.24249232,139.3,139.24,62.0]
[1750707414462,4.24249232,139.3,139.28,7.175]
[1750707414751,4.24249232,139.3,139.25,22.24645686]
[1750707416259,4.24249232,139.3,139.29,7.1748]
[1750707416861,4.24249232,139.3,139.26,42.74]
[1750707417357,4.24249232,139.3,139.29,7.1748]
[1750707418263,4.24249232,139.3,139.29,19.94024098]
[1750707418652,9.232e-05,139.3,139.29,19.94024098]
[1750707418849,101.0,139.49,139.29,169.96844391]
[1750707419060,4.24249232,139.5,139.36,12.74844391]
[1750707419249,4.24249232,139.5,139.37,200.1705]
[1750707419448,4.24249232,139.5,139.38,49.1329]
[1750707419655,21.55,139.58,139.38,49.1329]
[1750707419858,46.68,139.6,139.5,12.73124508]
[1750707420059,7.1609,139.56,139.5,12.73124508]
[1750707420251,47.90764722,139.59,139.51,22.15010522]
[1750707420559,7.1589,139.6,139.49,46.66]
[1750707420758,6.9948,139.62,139.49,46.66]
[1750707420963,6.9948,139.62,139.55,7.1609]
[1750707421156,6.9948,139.62,139.49,46.66]
[1750707421360,52.0,139.68,139.5,22.15010522]
[1750707421563,52.0,139.68,139.57,22.15010522]
[1750707421761,52.0,139.68,139.53,22.15010522]
[1750707421961,52.0,139.68,139.57,22.15010522]
[1750707422159,52.0,139.68,139.53,62.0]
[1750707422362,22.15010522,139.64,139.53,62.0]
[1750707422662,5.6505653,139.67,139.49,22.15010522]
[1750707422663,22.15010522,139.61,139.49,22.15010522]
[1750707422863,6.9539,139.6,139.48,22.15010522]
[1750707423370,6.9539,139.6,139.45,195.47050522]
[1750707423669,6.9539,139.6,139.26,2753.62]
[1750707423670,5.65745443,139.6,139.44,55.94]
[1750707423966,22.15010522,139.68,139.56,22.15010522]
[1750707424167,22.15010522,139.63,139.51,619.56]
[1750707424369,10.8933936,139.74,139.5,22.15010522]
[1750707424568,22.15010522,139.66,139.45,621.9313]
[1750707424762,22.15010522,139.63,139.5,22.15010522]
[1750707424965,22.15010522,139.63,139.46,235.1908]
[1750707425164,22.15010522,139.61,139.49,22.15010522]
[1750707425366,57.98,139.6,139.49,22.15010522]
[1750707425561,57.98,139.6,139.5,62.0]
[1750707425867,60.3449,139.6,139.5,62.0]
[1750707426167,22.15010522,139.59,139.5,62.0]
[1750707426365,22.15010522,139.59,139.51,7.163]
[1750707426565,22.15010522,139.59,139.5,62.0]
[1750707426566,22.15010522,139.59,139.46,2.4508]
[1750707426777,6.65090128,139.68,139.45,679.8913]
[1750707426956,4.8026,139.69,139.5,22.15010522]
[1750707427155,4.8026,139.69,139.51,235.3028]
[1750707427356,4.8026,139.69,139.52,2.2402]
[1750707427555,22.15010522,139.67,139.55,22.15010522]
[1750707427765,4.8026,139.69,139.55,22.15010522]
[1750707428063,22.15010522,139.68,139.57,22.15010522]
[1750707428267,22.15010522,139.68,139.55,57.96]
[1750707428471,4.8026,139.69,139.55,57.96]
[1750707428767,4.8026,139.69,139.6,22.15010522]
[1750707428962,4.8026,139.69,139.65,7.1563]
[1750707429169,4.8026,139.69,139.6,22.15010522]
[1750707429356,4.8026,139.69,139.62,22.15010522]
[1750707429560,1.24652995,139.76,139.66,22.15010522]
[1750707429872,2.2973,139.79,139.67,59.8]
[1750707430170,2.3436,139.84,139.68,2.4104]
[1750707430356,24.42360671,139.84,139.73,22.08000671]
[1750707430562,2.3436,139.84,139.75,22.08000671]
[1750707430861,59.8,139.86,139.8,22.06019611]
[1750707431169,2.4545,139.88,139.79,22.06019611]
[1750707431563,2.4545,139.88,139.68,4.8372]
[1750707431564,22.06019611,139.86,139.68,4.8372]
[1750707431772,22.06019611,139.8,139.7,22.06019611]
[1750707431959,64.4909,139.79,139.68,24.47059611]
[1750707432158,4.6909,139.79,139.68,2.4104]
[1750707432562,2.4149,139.79,139.68,2.4104]
[1750707432770,2.4149,139.79,139.74,22.06019611]
[1750707432970,2.4149,139.79,139.71,22.06019611]
[1750707433168,61.86,139.99,139.78,44.16780852]
[1750707433370,2.276,139.94,139.8,22.08390426]
[1750707433573,2.276,139.94,139.85,22.08390426]
[1750707433769,6.65739232,139.95,139.89,22.03404128]
[1750707433969,4.24249232,139.95,139.92,22.03404128]
[1750707434285,597.0,140.16,139.84,180.16]
[1750707434286,2.276,140.09,139.94,22.03404128]
[1750707434463,886.0,140.24,139.84,208.9]
[1750707434464,2.3257,140.26,140.08,22.0027148]
[1750707434771,64.06,140.21,140.1,22.0027148]
[1750707434970,2.3257,140.26,140.16,22.0027148]
[1750707435278,66.3857,140.26,140.13,64.06]
[1750707435568,66.3857,140.26,140.05,66.4375]
[1750707435761,66.3857,140.26,139.81,124.0]
[1750707435762,22.0027148,140.16,139.96,639.76]
[1750707435969,64.06,140.15,139.97,64.06]
[1750707436169,64.06,140.15,139.96,618.16]
[1750707436362,7.0684,140.14,139.97,33.92734611]
[1750707436569,7.0684,140.14,139.99,33.92734611]
[1750707436765,7.1326,140.12,139.99,97.98734611]
[1750707436962,33.92734611,140.12,140.0,62.0]
[1750707437365,618.16,140.18,139.95,2.2691]
[1750707437573,33.92734611,140.07,139.95,2.2691]
[1750707437871,66.14,140.08,139.95,2.2691]
[1750707438176,7.1391,139.99,139.92,185.64]
[1750707438365,66.1,140.01,139.92,185.64]
[1750707438565,100.02734611,140.01,139.89,2.2689]
[1750707438874,66.1,140.01,139.89,2.2689]
[1750707439067,100.02734611,140.01,139.89,2.2689]
[1750707439373,100.02734611,140.01,139.84,617.66]
[1750707439374,33.92734611,139.95,139.81,100.02734611]
[1750707439573,66.1,139.94,139.82,2.2689]
[1750707439881,66.1,139.94,139.87,33.92734611]
[1750707440061,683.76,139.98,139.86,100.02734611]
[1750707440266,33.92734611,139.96,139.82,68.3689]
[1750707440466,686.1954,139.98,139.82,66.1]
[1750707440674,33.92734611,139.95,139.82,66.1]
[1750707440880,33.92734611,139.92,139.8,33.92734611]
[1750707441063,7.146,139.86,139.79,66.08]
[1750707441269,33.92734611,139.89,139.79,66.08]
[1750707441464,620.0954,139.98,139.81,33.92734611]
[1750707441671,33.92734611,139.95,139.82,33.92734611]
[1750707442177,7.1446,139.88,139.79,107.15594611]
[1750707442371,33.92734611,139.89,139.79,66.08]
[1750707442578,33.92734611,139.89,139.78,2.2689]
[1750707442779,2.3035,139.91,139.78,2.2689]
[1750707443774,7.1471,139.83,139.78,2.2689]
[1750707443977,66.08,139.86,139.76,185.54]
[1750707444178,33.92734611,139.85,139.71,33.92734611]
[1750707444474,33.92734611,139.84,139.71,100.00734611]
[1750707444668,2.4042,139.85,139.73,34.04176205]
[1750707444870,34.04176205,139.83,139.71,66.08]
[1750707445082,34.04176205,139.8,139.7,2.3674]
[1750707445379,7.1512,139.75,139.69,7.1542]
[1750707445569,66.08,139.79,139.68,617.5]
[1750707445880,7.1496,139.78,139.68,617.5]
[1750707446075,66.08,139.79,139.68,617.5]
[1750707446271,34.04176205,139.78,139.68,617.5]
[1750707446576,7.1512,139.75,139.67,66.08]
[1750707446774,34.04176205,139.78,139.67,66.08]
[1750707447172,7.1507,139.76,139.7,7.1537]
[1750707447573,34.04176205,139.78,139.67,66.08]
[1750707447975,34.04176205,139.78,139.66,2.3674]
[1750707448176,2.2361,139.77,139.68,7.1546]
[1750707448372,2.4306,139.78,139.66,2.3674]
[1750707448576,2.4306,139.78,139.67,34.05902081]
[1750707448774,2.4306,139.78,139.66,2.3674]
[1750707448976,34.05902081,139.74,139.63,66.1]
[1750707449178,66.1,139.74,139.64,34.05902081]
[1750707449873,66.1,139.74,139.67,34.05902081]
[1750707450070,68.5306,139.78,139.69,34.05902081]
[1750707450273,2.2643,139.79,139.68,2.2103]
[1750707450274,66.1,139.85,139.75,34.05902081]
[1750707450673,66.1,139.85,139.76,34.03132138]
[1750707450871,66.1,139.85,139.73,66.1]
[1750707451075,66.1,139.85,139.74,34.03132138]
[1750707451284,7.1466,139.84,139.79,7.149]
[1750707451480,66.1,139.85,139.77,34.03132138]
[1750707451778,617.74,139.87,139.77,34.03132138]
[1750707451983,617.74,139.87,139.78,2.2103]
[1750707452585,617.74,139.87,139.78,36.24162138]
[1750707452984,617.74,139.87,139.82,7.1471]
[1750707453386,617.74,139.87,139.78,98.24162138]
[1750707453685,617.74,139.87,139.78,36.24162138]
[1750707454290,617.74,139.87,139.82,7.1472]
[1750707454687,617.74,139.87,139.78,36.24162138]
[1750707455289,617.74,139.87,139.81,7.1477]
[1750707455883,617.74,139.87,139.74,34.03132138]
[1750707456087,651.77761749,139.87,139.74,34.03761749]
[1750707456287,658.96461749,139.87,139.74,34.03761749]
[1750707456487,658.96461749,139.87,139.8,7.1482]
[1750707456682,658.96461749,139.87,139.74,34.03761749]
[1750707456889,658.96461749,139.87,139.73,66.1]
[1750707456890,7.1455,139.86,139.81,7.1477]
[1750707457284,7.1455,139.86,139.77,34.03761749]
[1750707457487,7.1461,139.85,139.77,34.03761749]
[1750707457688,617.74,139.87,139.77,34.03761749]
[1750707458083,7.1456,139.86,139.8,7.1486]